bitfinex/quotes_SOLUSD_20220113
["timestamp","ask_amount","ask_price","bid_price","bid_amount"]
[1642059703343,27.0708917,150.99,150.89,9.9379]
[1642059703747,27.0708917,150.99,150.89,10.1879]
[1642059703943,27.0708917,150.99,150.9,6.0]
[1642059704144,27.0708917,150.99,150.89,10.1879]
[1642059706447,24.4208917,150.99,150.9,8.65]
[1642059706647,24.4208917,150.99,150.91,9.9367]
[1642059707850,27.0698917,150.99,150.91,9.9367]
[1642059709252,27.0698917,150.99,150.9,8.649]
[1642059709452,24.4208917,150.99,150.9,6.0]
[1642059709654,24.4208917,150.99,150.89,12.587]
[1642059709854,27.0708917,150.99,150.88,2.65]
[1642059710053,27.0708917,150.99,150.87,2.65]
[1642059710256,37.0098917,150.99,150.86,2.65]
[1642059710554,23.6765,150.98,150.86,2.65]
[1642059710753,2.65,150.97,150.86,2.65]
[1642059711153,2.9,150.97,150.86,2.65]
[1642059712155,9.9414,150.96,150.86,2.65]
[1642059712353,9.9414,150.96,150.85,2.65]
[1642059712554,10.1914,150.96,150.84,2.65]
[1642059712956,10.1914,150.96,150.84,2.9]
[1642059713153,72.0753,150.95,150.84,2.9]
[1642059713553,72.3253,150.95,150.84,2.9]
[1642059714153,72.3253,150.95,150.85,9.9412]
[1642059714353,82.2666,150.95,150.86,2.65]
[1642059714553,82.2666,150.95,150.85,12.8412]
[1642059714957,82.2666,150.95,150.85,9.9412]
[1642059715155,82.2666,150.95,150.84,2.65]
[1642059715156,2.65,150.94,150.84,2.65]
[1642059715356,23.18998008,150.93,150.84,12.592]
[1642059715756,23.43998008,150.93,150.84,12.592]
[1642059716756,23.43998008,150.93,150.84,12.842]
[1642059717155,23.43998008,150.93,150.84,12.592]
[1642059718163,23.43998008,150.93,150.84,12.842]
[1642059718358,23.43998008,150.93,150.84,12.592]
[1642059718561,23.43998008,150.93,150.84,9.942]
[1642059721961,23.18998008,150.93,150.84,10.192]
[1642059722161,23.43998008,150.93,150.84,19.692]
[1642059722867,23.43998008,150.93,150.88,9.939]
[1642059723263,96.8056,150.95,150.88,9.939]
[1642059723472,97.0556,150.95,150.88,10.189]
[1642059723670,97.0556,150.95,150.89,2.65]
[1642059723969,97.0556,150.95,150.9,9.9378]
[1642059724566,96.8056,150.95,150.9,9.9378]
[1642059724767,72.0753,150.95,150.9,9.9378]
[1642059725268,72.0753,150.95,150.88,9.9388]
[1642059726172,72.3253,150.95,150.88,9.9388]
[1642059726579,72.3253,150.95,150.88,10.1888]
[1642059727774,72.3253,150.95,150.88,9.9388]
[1642059728173,72.3253,150.95,150.88,10.1888]
[1642059728375,0.25,150.95,150.88,10.1888]
[1642059728775,32.1691028,150.96,150.89,6.0]
[1642059729075,32.1691028,150.96,150.92,9.9367]
[1642059730179,0.25,150.96,150.92,9.9367]
[1642059730582,26.7729,150.99,150.92,9.9367]
[1642059731180,25.08085281,150.98,150.92,9.9367]
[1642059731377,25.08085281,150.98,150.9,9.9375]
[1642059731577,25.08085281,150.98,150.88,9.5]
[1642059731578,25.33085281,150.98,150.88,9.5]
[1642059731878,2.65,150.97,150.87,22.6844]
[1642059732079,25.2357,150.97,150.86,2.65]
[1642059732285,25.4857,150.97,150.86,2.65]
[1642059733178,35.4255,150.97,150.86,2.65]
[1642059733382,35.4255,150.97,150.86,2.9]
[1642059733810,25.4857,150.97,150.86,2.65]
[1642059734007,25.4857,150.97,150.86,2.9]
[1642059734807,25.4857,150.97,150.86,2.65]
[1642059735008,25.4857,150.97,150.86,12.5901]
[1642059736311,35.4254,150.97,150.86,12.5901]
[1642059737715,35.4254,150.97,150.86,9.9401]
[1642059741017,25.4857,150.97,150.86,9.9401]
[1642059741715,25.4857,150.97,150.86,76.4501]
[1642059742316,35.4254,150.97,150.86,76.4501]
[1642059744524,35.4254,150.97,150.86,9.9401]
[1642059744753,44.9254,150.97,150.86,9.9401]
[1642059745121,44.9254,150.97,150.85,2.65]
[1642059745323,78.3843,150.96,150.85,2.65]
[1642059745521,2.65,150.95,150.85,2.65]
[1642059745725,37.4658,150.95,150.85,2.65]
[1642059746727,48.63838303,150.95,150.81,12.15]
[1642059748127,48.63838303,150.95,150.81,12.4]
[1642059748426,46.9658,150.95,150.81,12.4]
[1642059748628,46.9658,150.95,150.81,36.7238]
[1642059749030,113.4758,150.95,150.81,2.65]
[1642059749233,72.87688303,150.95,150.8,95.55]
[1642059749434,124.33888303,150.95,150.8,95.55]
[1642059750231,124.33888303,150.95,150.8,102.8444]
[1642059750632,7.52191236,150.94,150.8,102.8444]
[1642059750834,9.944,150.91,150.8,102.8444]
[1642059751042,24.93001897,150.9,150.8,102.8444]
[1642059751236,25.18001897,150.9,150.8,102.8444]
[1642059751434,22.53001897,150.9,150.8,102.8444]
[1642059752134,32.47431897,150.9,150.8,102.8444]
[1642059752366,22.53001897,150.9,150.8,102.8444]
[1642059752770,22.53001897,150.9,150.82,9.9429]
[1642059756975,0.25,150.9,150.82,9.9429]
[1642059757173,2.9,150.91,150.82,10.1929]
[1642059757377,0.25,150.91,150.84,9.9419]
[1642059757777,24.3447,150.92,150.81,26.7664]
[1642059757975,31.52483674,150.91,150.82,6.0]
[1642059758377,41.46843674,150.91,150.81,26.7664]
[1642059758675,44.11843674,150.91,150.81,26.7664]
[1642059758877,34.17483674,150.91,150.81,36.7098]
[1642059759076,107.01723674,150.91,150.81,36.9598]
[1642059759678,104.36723674,150.91,150.81,36.7098]
[1642059761383,104.11723674,150.91,150.81,36.7098]
[1642059761582,104.11723674,150.91,150.81,36.9598]
[1642059762684,114.31083674,150.91,150.81,36.9598]
[1642059763086,22.954,150.9,150.81,36.9598]
[1642059763285,23.204,150.9,150.81,36.9598]
[1642059764734,24.4885,150.95,150.86,9.9402]
[1642059764932,55.95344798,150.95,150.86,9.9402]
[1642059765531,55.95344798,150.95,150.87,6.0]
[1642059765932,55.95344798,150.95,150.87,15.94]
[1642059766132,55.95344798,150.95,150.84,2.65]
[1642059766333,2.65,150.94,150.83,33.1317]
[1642059766540,22.6404,150.93,150.83,33.1317]
[1642059766734,22.8904,150.93,150.83,33.1317]
[1642059767035,22.8904,150.93,150.85,9.9413]
[1642059767834,22.8904,150.93,150.82,32.3609]
[1642059768034,2.65,150.92,150.82,22.8609]
[1642059768234,2.9,150.92,150.82,22.8609]
[1642059768634,78.5746,150.92,150.82,22.8609]
[1642059768934,9.9441,150.91,150.82,22.8609]
[1642059769135,10.1941,150.91,150.82,22.8609]
[1642059769533,10.1941,150.91,150.82,32.804]
[1642059769534,0.25,150.91,150.82,32.804]
[1642059770435,78.5746,150.92,150.82,32.804]
[1642059770836,78.3246,150.92,150.82,32.804]
[1642059771239,88.2677,150.92,150.82,32.804]
[1642059772140,88.5177,150.92,150.82,32.804]
[1642059772942,88.5177,150.92,150.82,9.9431]
[1642059775245,88.5177,150.92,150.8,23.3463]
[1642059775446,88.5177,150.92,150.8,33.2904]
[1642059777746,88.5177,150.92,150.81,2.65]
[1642059777948,88.5177,150.92,150.82,9.943]
[1642059778145,88.2677,150.92,150.82,9.943]
[1642059778948,78.3246,150.92,150.82,9.943]
[1642059779149,75.6746,150.92,150.83,2.65]
[1642059779349,75.6746,150.92,150.84,9.9418]
[1642059779550,75.9246,150.92,150.84,9.9418]
[1642059782381,9.9422,150.93,150.84,9.9418]
[1642059782781,2.65,150.94,150.84,9.9418]
[1642059783784,2.9,150.94,150.84,9.9418]
[1642059784783,22.3417,150.94,150.82,37.4033]
[1642059784983,22.3417,150.94,150.82,34.7533]
[1642059785585,23.3681,150.93,150.82,34.7533]
[1642059785787,9.9436,150.91,150.82,34.7533]
[1642059785986,2.65,150.9,150.82,34.7533]
[1642059786185,15.8959238,150.89,150.82,34.7533]
[1642059786387,15.8959238,150.89,150.82,9.9428]
[1642059786585,16.1459238,150.89,150.82,9.9428]
[1642059788687,16.1459238,150.89,150.8,34.6662]
[1642059789289,26.0909238,150.89,150.8,34.6662]
[1642059789690,16.1459238,150.89,150.8,34.6662]
[1642059789890,16.1459238,150.89,150.8,44.6107]
[1642059790293,16.1459238,150.89,150.8,41.9607]
[1642059792992,15.8959238,150.89,150.8,41.9607]
[1642059793491,15.8959238,150.89,150.8,42.2107]
[1642059793892,15.8959238,150.89,150.81,2.65]
[1642059794091,15.8959238,150.89,150.82,9.943]
[1642059794294,16.1459238,150.89,150.82,9.943]
[1642059797495,16.1459238,150.89,150.81,2.65]
[1642059797897,39.7180238,150.89,150.81,2.65]
[1642059799297,39.7180238,150.89,150.81,12.5939]
[1642059800100,39.7180238,150.89,150.81,9.9439]
[1642059808807,39.7180238,150.89,150.8,32.4608]
[1642059810107,42.3680238,150.89,150.8,32.4608]
[1642059811912,52.3129238,150.89,150.8,32.4608]
[1642059812111,52.3129238,150.89,150.8,22.5162]
[1642059812511,52.3129238,150.89,150.78,45.41059236]
[1642059812712,52.3129238,150.89,150.78,43.5191]
[1642059812914,54.20951338,150.89,150.78,43.5191]
[1642059813513,1.89658958,150.88,150.78,43.5191]
[1642059813814,9.9461,150.87,150.78,43.5191]
[1642059814012,9.9461,150.87,150.77,2.65]
[1642059814013,2.652,150.86,150.77,2.65]
[1642059814213,9.5,150.85,150.77,2.65]
[1642059814416,9.5,150.85,150.76,1.89149236]
[1642059814612,25.3263,150.84,150.76,1.89149236]
[1642059814812,29.89716245,150.83,150.76,1.89149236]
[1642059815213,30.14716245,150.83,150.74,1.89149236]
[1642059815413,30.14716245,150.83,150.75,2.652]
[1642059816235,30.14716245,150.83,150.75,12.5997]
[1642059816635,30.14716245,150.83,150.75,9.9477]
[1642059816838,30.14716245,150.83,150.74,1.89149236]
[1642059817439,22.6129,150.82,150.74,1.89149236]
[1642059817637,22.8629,150.82,150.74,1.89149236]
[1642059818638,22.8629,150.82,150.73,12.6006]
[1642059818837,22.8629,150.82,150.73,12.8506]
[1642059819238,32.8124,150.82,150.73,12.8506]
[1642059820242,32.8124,150.82,150.73,12.6006]
[1642059821344,32.8124,150.82,150.73,9.9486]
[1642059824656,22.6129,150.82,150.73,10.1986]
[1642059824854,2.652,150.84,150.73,11.30872679]
[1642059825054,26.734,150.86,150.73,20.80872679]
[1642059825355,26.734,150.86,150.77,9.9461]
[1642059825754,25.99637693,150.85,150.77,9.9461]
[1642059825954,2.652,150.84,150.77,9.9461]
[1642059826153,2.902,150.84,150.77,9.9461]
[1642059826753,27.0132,150.84,150.77,9.9461]
[1642059828659,24.3612,150.84,150.77,10.1961]
[1642059829059,25.99637693,150.85,150.77,10.1961]
[1642059829662,25.99637693,150.85,150.78,2.652]
[1642059829860,25.99637693,150.85,150.79,9.9453]
[1642059830560,26.24637693,150.85,150.79,9.9453]
[1642059834666,0.25,150.85,150.79,9.9453]
[1642059835091,23.1032,150.86,150.79,9.9453]
[1642059836591,22.8532,150.86,150.79,15.6513]
[1642059836794,22.8532,150.86,150.79,15.9013]
[1642059836991,22.8532,150.86,150.79,25.4013]
[1642059837591,79.9848,150.88,150.8,2.652]
[1642059837794,79.9848,150.88,150.82,9.9427]
[1642059838792,80.2348,150.88,150.82,9.9427]
[1642059839293,0.25,150.88,150.82,9.9427]
[1642059839700,4.79858958,150.91,150.82,9.9427]
[1642059841398,14.74218958,150.91,150.82,9.9427]
[1642059841599,23.839,150.9,150.82,9.9427]
[1642059842098,24.089,150.9,150.82,9.9427]
[1642059846606,23.839,150.9,150.82,9.9427]
[1642059847405,23.839,150.9,150.81,25.2698]
[1642059847603,2.65,150.89,150.79,2.65]
[1642059847803,2.65,150.89,150.78,66.07067815]
[1642059848302,2.9,150.89,150.78,66.07067815]
[1642059848503,2.9,150.89,150.79,9.9452]
[1642059848702,0.25,150.89,150.8,2.65]
[1642059848903,2.65,150.88,150.8,2.65]
[1642059849105,2.65,150.89,150.8,2.65]
[1642059849404,0.25,150.88,150.8,2.65]
[1642059850604,4.79658958,150.89,150.8,2.65]
[1642059851308,9.9455,150.88,150.8,2.65]
[1642059851806,10.1955,150.88,150.8,2.65]
[1642059852508,10.1955,150.88,150.79,12.5952]
[1642059853307,23.2472,150.87,150.79,12.5952]
[1642059853708,23.4972,150.87,150.79,12.5952]
[1642059854209,20.89633992,150.86,150.79,12.5952]
[1642059854609,21.14633992,150.86,150.79,12.5952]
[1642059857013,21.14633992,150.86,150.79,9.9452]
[1642059863921,21.14633992,150.86,150.78,33.1801]
[1642059864121,23.79833992,150.86,150.78,33.1801]
[1642059865329,21.14633992,150.86,150.78,33.1801]
[1642059868550,21.14633992,150.86,150.78,23.1229]
[1642059868749,24.3232,150.85,150.78,23.1229]
[1642059869150,24.5732,150.85,150.78,23.1229]
[1642059870052,27.2252,150.85,150.78,23.1229]
[1642059871256,34.5206,150.85,150.78,23.1229]
[1642059874257,24.5732,150.85,150.78,23.1229]
[1642059874657,24.3232,150.85,150.78,23.1229]
[1642059876057,24.3232,150.85,150.78,33.0688]
[1642059876262,24.5732,150.85,150.78,23.1229]
[1642059876457,27.2252,150.85,150.78,23.1229]
[1642059877263,37.1725,150.85,150.78,23.1229]
[1642059877662,39.06908958,150.85,150.78,23.1229]
[1642059882362,36.41708958,150.85,150.78,23.1229]
[1642059892214,36.41708958,150.85,150.76,9.9467]
[1642059893010,12.09388958,150.85,150.76,9.9467]
[1642059893211,2.14658958,150.85,150.76,76.4567]
[1642059893512,2.14658958,150.85,150.77,19.4463]
[1642059894212,0.25,150.85,150.77,19.4463]
[1642059894411,24.3327,150.85,150.77,19.4463]
[1642059894610,24.0827,150.85,150.77,19.4463]
[1642059894811,24.3327,150.85,150.77,19.4463]
[1642059896017,24.3327,150.85,150.77,22.0983]
[1642059897418,24.3327,150.85,150.77,19.4463]
[1642059899820,24.3327,150.85,150.77,9.5]
[1642059900020,24.3327,150.85,150.76,26.0602]
[1642059900221,24.3327,150.85,150.76,27.95169236]
[1642059901020,26.22928958,150.85,150.76,26.0602]
[1642059901221,48.32878958,150.85,150.76,26.0602]
[1642059902220,28.63128958,150.85,150.76,33.3551]
[1642059902420,25.97928958,150.85,150.77,8.652]
[1642059902620,1.89658958,150.84,150.77,8.652]
[1642059903220,1.89658958,150.84,150.77,75.162]
[1642059903524,1.89658958,150.84,150.78,9.9457]
[1642059903722,2.14658958,150.84,150.78,9.9457]
[1642059904125,0.25,150.84,150.78,9.9457]
[1642059904523,24.3327,150.85,150.77,2.652]
[1642059904726,26.9847,150.85,150.77,2.652]
[1642059905926,28.88128958,150.85,150.77,2.652]
[1642059906323,38.82878958,150.85,150.77,2.652]
[1642059907526,38.82878958,150.85,150.75,1.89149236]
[1642059907826,48.32878958,150.85,150.75,1.89149236]
[1642059908225,1.89658958,150.84,150.73,25.91729236]
[1642059908425,12.6007,150.83,150.73,38.51849236]
[1642059908828,12.8507,150.83,150.73,38.51849236]
[1642059909027,23.5696,150.82,150.73,38.51849236]
[1642059909229,23.8196,150.82,150.73,38.51849236]
[1642059910627,23.8196,150.82,150.74,66.51]
[1642059910828,23.8196,150.82,150.75,9.9475]
[1642059911029,0.25,150.82,150.75,12.5995]
[1642059911231,76.36478958,150.84,150.75,35.2689]
[1642059911833,22.9233,150.83,150.75,35.2689]
[1642059912332,0.25,150.83,150.79,9.9447]
[1642059912535,1.89658958,150.85,150.79,9.9447]
[1642059912734,1.89658958,150.85,150.79,12.5967]
[1642059913563,1.89658958,150.87,150.79,12.5967]
[1642059913763,25.84618958,150.87,150.79,12.5967]
[1642059913962,25.84618958,150.87,150.79,9.9447]
[1642059914165,26.09618958,150.87,150.79,9.9447]
[1642059916265,26.09618958,150.87,150.79,32.6066]
[1642059916466,24.1996,150.87,150.79,32.6066]
[1642059917368,26.8496,150.87,150.79,32.6066]
[1642059918367,26.09618958,150.87,150.79,32.6066]
[1642059919570,28.74618958,150.87,150.79,32.6066]
[1642059920267,28.74618958,150.87,150.79,9.9447]
[1642059920467,40.36477261,150.87,150.77,2.65]
[1642059920668,9.5,150.86,150.77,2.65]
[1642059920869,2.652,150.85,150.77,2.65]
[1642059921074,26.3145,150.85,150.77,2.65]
[1642059921272,26.5645,150.85,150.77,2.65]
[1642059921473,9.9485,150.84,150.77,2.65]
[1642059921672,10.1985,150.84,150.77,2.65]
[1642059921873,10.1985,150.84,150.74,1.89678178]
[1642059922079,24.1413,150.83,150.74,1.89678178]
[1642059922273,24.3913,150.83,150.74,1.89678178]
[1642059922476,0.25,150.83,150.74,1.89678178]
[1642059922675,0.25,150.83,150.75,12.5998]
[1642059922874,0.25,150.83,150.76,28.46916179]
[1642059923482,2.14658958,150.85,150.76,28.46916179]
[1642059923678,2.14658958,150.85,150.75,12.152]
[1642059923878,4.79858958,150.85,150.75,9.5]
[1642059924079,0.25,150.85,150.76,69.162]
[1642059924280,23.909,150.86,150.78,9.9454]
[1642059925380,12.597,150.89,150.78,9.9454]
[1642059925581,25.3458,150.89,150.81,9.9434]
[1642059925779,3.77699517,150.9,150.81,9.9434]
[1642059925982,3.77699517,150.9,150.82,2.65]
[1642059926180,3.77699517,150.9,150.82,77.53]
[1642059926379,3.77699517,150.9,150.82,11.02]
[1642059927184,0.25,150.9,150.84,9.9416]
[1642059927584,29.45584782,150.91,150.84,9.9416]
[1642059929688,29.45584782,150.91,150.82,12.5928]
[1642059932318,0.25,150.91,150.82,36.87641832]
[1642059932718,125.7665,150.92,150.82,36.87641832]
[1642059933319,25.72028113,150.91,150.82,36.87641832]
[1642059933818,25.97028113,150.91,150.82,12.5928]
[1642059935919,24.9571,150.9,150.82,12.5928]
[1642059936322,25.2071,150.9,150.82,12.5928]
[1642059936919,0.25,150.9,150.82,12.5928]
[1642059937623,102.9648,150.92,150.82,12.5928]
[1642059937819,2.65,150.91,150.82,76.4528]
[1642059938020,2.65,150.91,150.82,9.9428]
[1642059938220,2.9,150.91,150.82,9.9428]
[1642059939123,0.25,150.91,150.82,9.9428]
[1642059939323,0.25,150.91,150.81,25.2534]
[1642059939524,2.65,150.9,150.81,22.6034]
[1642059939726,0.25,150.9,150.81,22.6034]
[1642059940825,10.1941,150.9,150.81,32.5472]
[1642059941026,9.9441,150.9,150.81,32.5472]
[1642059941227,10.1941,150.9,150.81,32.5472]
[1642059942028,10.1941,150.9,150.81,35.1972]
[1642059942230,22.8788,150.89,150.81,35.1972]
[1642059942432,22.8788,150.89,150.81,32.5472]
[1642059942631,23.1288,150.89,150.81,32.5472]
[1642059943530,23.1288,150.89,150.81,9.9438]
[1642059943730,33.0733,150.89,150.8,12.15]
[1642059943931,33.0733,150.89,150.79,35.95445809]
[1642059944737,33.0733,150.89,150.78,2.65]
[1642059944932,2.65,150.88,150.78,2.65]
[1642059945135,32.4966,150.87,150.78,2.65]
[1642059945533,32.7466,150.87,150.78,2.65]
[1642059945736,22.50667663,150.86,150.78,2.65]
[1642059946134,22.75667663,150.86,150.78,12.5959]
[1642059946334,0.25,150.86,150.78,12.5959]
[1642059947135,22.8002,150.87,150.78,12.5959]
[1642059947738,22.5502,150.87,150.78,12.5959]
[1642059949638,22.8002,150.87,150.78,12.5959]
[1642059951444,35.3982,150.87,150.76,36.5213]
[1642059951641,108.3292,150.87,150.76,46.0213]
[1642059952639,108.3292,150.87,150.76,43.3693]
[1642059954741,108.3292,150.87,150.76,46.0213]
[1642059954941,108.3292,150.87,150.76,46.2713]
[1642059955142,108.3292,150.87,150.76,46.0213]
[1642059957143,108.3292,150.87,150.76,109.8793]
[1642059957543,108.3292,150.87,150.76,110.1293]
[1642059957743,98.3832,150.87,150.76,110.1293]
[1642059958043,95.7312,150.87,150.77,2.652]
[1642059958344,98.1332,150.87,150.78,39.7828297]
[1642059958572,95.4812,150.87,150.78,39.7828297]
[1642059958844,105.4272,150.87,150.78,39.7828297]
[1642059959446,105.4272,150.87,150.78,9.9455]
[1642059959646,2.652,150.86,150.78,9.9455]
[1642059960047,2.902,150.86,150.78,9.9455]
[1642059960648,0.25,150.86,150.78,9.9455]
[1642059961049,0.25,150.86,150.78,33.3761]
[1642059961251,95.7312,150.87,150.78,33.3761]
[1642059963453,95.7312,150.87,150.79,2.652]
[1642059963851,95.7312,150.87,150.79,12.5969]
[1642059964752,95.7312,150.87,150.79,79.1069]
[1642059965051,95.7312,150.87,150.79,12.5969]
[1642059966482,95.7312,150.87,150.79,2.652]
[1642059967081,2.65,150.86,150.78,23.4306]
[1642059967282,2.9,150.86,150.78,23.4306]
[1642059969483,2.9,150.86,150.78,33.3764]
[1642059971888,0.25,150.86,150.78,33.3764]
[1642059972089,108.329,150.87,150.78,33.3764]
[1642059973993,108.079,150.87,150.78,33.3764]
[1642059975292,95.4812,150.87,150.78,33.3764]
[1642059975494,95.7312,150.87,150.78,33.3764]
[1642059975692,95.4812,150.87,150.78,33.3764]
[1642059976295,2.652,150.86,150.78,33.3764]
[1642059977294,2.902,150.86,150.78,33.3764]
[1642059977495,0.25,150.86,150.78,33.3764]
[1642059977694,108.3292,150.87,150.78,33.3764]
[1642059983604,108.0792,150.87,150.78,33.3764]
[1642059984929,105.4272,150.87,150.78,33.3764]
[1642059985130,105.6772,150.87,150.78,33.3764]
[1642059985933,95.4812,150.87,150.78,33.3764]
[1642059986135,95.4812,150.87,150.78,41.2084]
[1642059986432,2.652,150.88,150.83,9.9423]
[1642059986632,3.77699517,150.89,150.83,9.9423]
[1642059987731,136.79207157,150.91,150.83,9.9423]
[1642059988633,137.04207157,150.91,150.83,9.9423]
[1642059988832,133.2650764,150.91,150.83,9.9423]
[1642059989033,135.6650764,150.91,150.83,9.9423]
[1642059990036,133.0150764,150.91,150.83,9.9423]
[1642059990237,133.2650764,150.91,150.83,9.9423]
[1642059993240,135.9150764,150.91,150.83,9.9423]
[1642059995443,105.2418,150.91,150.83,9.9423]
[1642059998848,104.9918,150.91,150.83,9.9423]
[1642060000151,105.2418,150.91,150.82,9.9433]
[1642060001047,115.1851,150.91,150.82,9.9433]
[1642060004954,9.9464,150.87,150.77,12.15]
[1642060005155,2.652,150.86,150.77,9.5]
[1642060005354,10.1964,150.87,150.77,9.5]
[1642060005558,0.25,150.86,150.77,9.5]
[1642060005753,45.44660004,150.86,150.78,23.6728]
[1642060006155,45.69660004,150.86,150.78,33.6185]
[1642060007759,48.34860004,150.86,150.78,33.6185]
[1642060010063,58.29480004,150.86,150.78,33.6185]
[1642060010260,55.64280004,150.86,150.78,33.6185]
[1642060010961,55.39280004,150.86,150.78,33.6185]
[1642060012286,55.64280004,150.86,150.78,33.6185]
[1642060015594,33.1631,150.86,150.78,33.6185]
[1642060019794,23.2169,150.86,150.78,33.6185]
[1642060020898,33.1631,150.86,150.78,23.6728]
[1642060023297,33.1631,150.86,150.78,33.6188]
[1642060038148,33.1631,150.86,150.78,23.6728]
[1642060042254,32.9131,150.86,150.78,23.6728]
[1642060042554,1.89924144,150.85,150.78,23.6728]
[1642060043554,2.14924144,150.85,150.78,23.6728]
[1642060044058,1.89924144,150.84,150.78,23.6728]
[1642060044258,2.14924144,150.84,150.78,23.6728]
[1642060049167,26.68404144,150.84,150.78,23.6728]
[1642060050767,26.43404144,150.84,150.78,23.6728]
[1642060051267,26.43404144,150.84,150.78,21.1728]
[1642060052067,26.43404144,150.84,150.78,20.1728]
[1642060052272,26.68404144,150.84,150.78,20.1728]
[1642060062920,2.14924144,150.84,150.78,30.1186]
[1642060064121,2.14924144,150.84,150.78,20.1728]
[1642060066926,26.93004144,150.84,150.78,20.1728]
[1642060068626,26.68004144,150.84,150.78,20.1728]
[1642060070328,26.93004144,150.84,150.78,20.1728]
[1642060075862,1.89924144,150.83,150.78,20.1728]
[1642060076262,2.14924144,150.83,150.78,20.1728]
[1642060077162,2.14924144,150.83,150.75,44.63538896]
[1642060079867,2.14924144,150.83,150.75,41.98338896]
[1642060080164,2.14924144,150.83,150.75,19.4474]
[1642060090773,1.89924144,150.83,150.75,19.4474]
[1642060090974,1.89924144,150.83,150.76,75.49048227]
[1642060091174,1.89924144,150.83,150.79,9.9447]
[1642060091374,1.89924144,150.84,150.79,9.9447]
[1642060092177,2.14924144,150.84,150.79,9.9447]
[1642060092375,0.25,150.84,150.79,9.9447]
[1642060092777,2.14924144,150.86,150.79,9.9447]
[1642060093780,2.14924144,150.86,150.79,41.70722821]
[1642060094482,0.25,150.86,150.79,41.70722821]
[1642060094682,27.99061854,150.87,150.79,41.70722821]
[1642060094884,27.99061854,150.87,150.79,9.9447]
[1642060097687,27.99061854,150.87,150.79,10.26316864]
[1642060097890,27.99061854,150.87,150.79,10.01316864]
[1642060099392,26.0913771,150.87,150.79,10.01316864]
[1642060100394,26.0913771,150.87,150.8,2.65]
[1642060100793,26.0913771,150.87,150.8,12.5946]
[1642060101420,1.6022771,150.87,150.8,12.5946]
[1642060101820,0.25,150.87,150.8,12.5946]
[1642060102021,0.25,150.87,150.81,66.51]
[1642060102223,2.14924144,150.88,150.84,9.942]
[1642060102825,0.25,150.88,150.84,9.942]
[1642060103228,101.69954144,150.89,150.84,9.942]
[1642060103826,99.8003,150.89,150.84,9.942]
[1642060110639,4.54924144,150.91,150.84,10.192]
[1642060110838,1.89924144,150.91,150.85,2.65]
[1642060111051,1.89924144,150.91,150.86,9.5]
[1642060111239,1.89924144,150.91,150.88,9.9384]
[1642060111439,1.89924144,150.94,150.88,9.9384]
[1642060111841,75.94214144,150.96,150.88,41.29009743]
[1642060112370,22.7995,150.97,150.89,66.51]
[1642060112371,1.89924144,150.97,150.89,66.51]
[1642060112543,1.89924144,150.97,150.93,9.9349]
[1642060112946,1.89924144,150.99,150.93,9.9349]
[1642060113547,2.65,151.0,150.93,9.9349]
[1642060113943,2.9,151.0,150.93,9.9349]
[1642060114744,2.65,151.0,150.93,9.9349]
[1642060114944,27.91968303,151.01,150.93,9.9349]
[1642060116047,28.16968303,151.01,150.93,9.9349]
[1642060120485,26.4971,151.01,150.93,9.9349]
[1642060121189,26.4971,151.01,150.94,66.51]
[1642060121489,23.8481,151.01,150.95,12.5833]
[1642060123887,0.25,151.01,150.95,79.0933]
[1642060124286,72.5493,151.03,150.95,79.0933]